bitfinex-derivatives/quotes_ETHF0:USTF0_20260203
["timestamp","ask_amount","ask_price","bid_price","bid_amount"]
[1770109833597,4.97679083,2309.4,2308.6,2.51536138]
[1770109834294,2.39637942,2309.3,2308.3,2.52458786]
[1770109834599,4.77923997,2309.2,2308.3,2.52458786]
[1770109834802,4.77923997,2309.2,2308.6,2.29863138]
[1770109835003,2.39637942,2309.3,2308.5,0.21675]
[1770109835495,4.96196648,2309.2,2308.5,0.21675]
[1770109835700,4.96196648,2309.2,2308.5,2.51538138]
[1770109835901,4.221,2309.5,2308.5,2.51538138]
[1770109836097,4.221,2309.5,2308.7,2.29863138]
[1770109836399,4.99909864,2309.4,2308.7,2.29863138]
[1770109837300,4.99909864,2309.4,2308.7,2.51535138]
[1770109840195,7.48825222,2309.4,2308.7,0.21672]
[1770109841401,4.99909864,2309.4,2308.7,2.51535138]
[1770109841802,4.99909864,2309.4,2308.7,0.21672]
[1770109842002,4.99909864,2309.4,2308.7,2.51535138]
[1770109842503,4.99909864,2309.4,2308.7,0.21672]
[1770109843001,4.99909864,2309.4,2308.7,2.51535138]
[1770109843202,7.48825222,2309.4,2308.7,0.21672]
[1770109843602,4.99909864,2309.4,2308.7,2.51535138]
[1770109844505,4.221,2309.5,2308.7,2.51535138]
[1770109845497,4.97423353,2309.4,2308.7,2.51535138]
[1770109846507,4.97423353,2309.4,2308.7,0.21672]
[1770109848106,7.46338711,2309.4,2308.7,0.21672]
[1770109849007,4.97423353,2309.4,2308.8,2.51534138]
[1770109849305,3.03,2309.6,2308.8,2.51534138]
[1770109849706,4.56591621,2309.5,2308.8,2.51534138]
[1770109851511,3.03,2309.6,2309.1,2.49883027]
[1770109851809,3.03,2309.6,2309.1,2.71552027]
[1770109852202,2.43340448,2309.4,2308.3,2.70692689]
[1770109852407,2.43340448,2309.4,2308.4,2.69773041]
[1770109852607,4.93107657,2309.3,2308.4,2.48097041]
[1770109852909,9.13607657,2309.5,2308.7,2.48097041]
[1770109853211,4.205,2309.5,2308.7,2.48097041]
[1770109853509,4.67440568,2309.4,2308.7,2.48097041]
[1770109853911,3.032,2309.6,2308.7,2.48097041]
[1770109854105,3.032,2309.6,2308.9,2.48097041]
[1770109855710,2.47407835,2309.5,2308.5,3.8291423]
[1770109855912,7.13527017,2309.5,2308.6,0.21674]
[1770109856114,7.13527017,2309.5,2308.6,2.69771041]
[1770109857217,3.032,2309.6,2308.6,2.69771041]
[1770109857508,7.22274143,2309.5,2308.7,0.21673]
[1770109857812,2.41865823,2309.4,2308.7,0.21673]
[1770109858210,3.032,2309.6,2308.7,2.69770041]
[1770109858609,4.68218894,2309.5,2308.7,2.69770041]
[1770109859810,7.09791685,2309.5,2308.7,2.69770041]
[1770109861206,4.68218894,2309.5,2308.7,2.69770041]
[1770109861707,2.41742747,2309.4,2308.7,0.21673]
[1770109862111,6.96545139,2309.3,2308.7,0.21673]
[1770109862506,4.56171124,2309.4,2308.7,0.21673]
[1770109862707,6.97913871,2309.5,2308.3,2.70692689]
[1770109862708,2.41742747,2309.3,2308.3,2.70692689]
[1770109862908,12.02642747,2309.2,2308.3,2.70692689]
[1770109863114,2.19147099,2308.9,2307.7,4.0459623]
[1770109863316,2.19147099,2308.8,2307.7,2.69779041]
[1770109863615,2.19147099,2308.8,2307.7,0.21682]
[1770109863616,2.19147099,2308.7,2307.7,0.21682]
[1770109863813,2.20085789,2308.5,2307.7,0.21682]
[1770109864014,11.81785789,2308.5,2307.7,0.21682]
[1770109864209,4.67101068,2308.4,2307.7,2.48097041]
[1770109864410,0.00555009,2308.4,2308.0,2.48097041]
[1770109864914,2.20085789,2309.1,2308.1,2.48097041]
[1770109865216,4.59596117,2308.9,2308.1,2.48097041]
[1770109865616,4.14650117,2308.9,2308.4,2.69772041]
[1770109865811,0.0047979,2308.9,2308.4,2.69772041]
[1770109866017,7.9e-06,2308.9,2308.6,2.48097041]
[1770109866816,2.17129261,2310.0,2308.7,3.8291423]
[1770109867119,4.56636005,2309.8,2309.0,2.69767041]
[1770109867316,4.56636005,2309.8,2309.1,2.69766041]
[1770109867513,2.17129261,2310.0,2309.1,2.69766041]
[1770109867917,4.56636005,2309.9,2309.1,2.69766041]
[1770109868719,2.0765028,2309.8,2308.8,0.513543]
[1770109869017,2.70231155,2309.4,2308.2,2.48097041]
[1770109869222,11.15893138,2309.3,2308.2,2.48097041]
[1770109869422,15.9057149,2309.3,2308.2,2.48097041]
[1770109869622,15.9098513,2309.3,2308.2,2.48097041]
[1770109869820,0.0041364,2309.2,2308.0,0.21679]
[1770109870020,0.0041364,2309.0,2307.7,0.00421131]
[1770109870421,0.0041364,2308.8,2307.7,0.00421131]
[1770109870620,0.0041364,2308.8,2307.7,2.55565451]
[1770109870824,4.9119764,2308.7,2307.7,2.55565451]
[1770109871524,0.0041364,2308.8,2307.7,2.55565451]
[1770109871725,4.7189904,2308.8,2307.7,2.55565451]
[1770109872727,2.70231155,2308.6,2307.2,3.8291423]
[1770109873026,14.17816302,2308.5,2307.1,2.55351141]
[1770109873225,40.8,2308.4,2307.1,2.55351141]
[1770109873425,3.033,2308.3,2307.1,2.55351141]
[1770109873626,7.77267201,2308.3,2307.1,2.55351141]
[1770109873827,7.77600583,2308.3,2307.1,2.55837572]
[1770109874320,7.77600583,2308.3,2307.1,0.00486431]
[1770109874526,38.24289358,2307.7,2305.2,5.17001845]
[1770109874728,0.21721,2303.6,2299.4,0.2176]
[1770109874922,0.21725,2303.2,2299.8,14.21777481]
[1770109875123,40.40800742,2300.9,2299.9,91.89699481]
[1770109875326,11.73298411,2300.8,2299.8,5.51523065]
[1770109875523,6.15898411,2300.7,2299.9,0.00492128]
[1770109875729,6.15898411,2300.6,2296.9,3.033]
[1770109875927,21.29482549,2301.2,2299.9,81.12945049]
[1770109876132,17.03586039,2300.3,2299.5,5.76475843]
[1770109876331,1.79897813,2300.5,2299.3,3.47848025]
[1770109876630,16.79403948,2300.4,2300.0,2.55351141]
[1770109876829,7.4110219,2300.1,2300.0,2.55351141]
[1770109877131,7.4110219,2300.1,2298.1,3.034]
[1770109877132,0.00359361,2300.1,2299.6,2.55351141]
[1770109877334,6.1353519,2299.7,2299.2,2.55351141]
[1770109877628,41.42440526,2300.0,2299.6,25.07914517]
[1770109877828,22.64833499,2300.2,2299.7,2.48097041]
[1770109878026,10.085,2300.5,2299.7,2.48097041]
[1770109878228,10.085,2300.5,2297.5,0.21778]
[1770109878229,2.1123195,2300.4,2297.2,3.47848025]
[1770109878427,2.1123195,2300.0,2297.8,2.69872041]
[1770109878627,2.1123195,2299.8,2297.8,2.69872041]
[1770109878933,2.1123195,2299.6,2298.1,0.21772]
[1770109879129,7.94074284,2299.5,2298.1,0.21772]
[1770109879427,2.52674284,2299.4,2297.5,0.21778]
[1770109879624,2.52674284,2299.4,2298.2,5.72347401]
[1770109879824,2.52674284,2299.2,2298.3,40.8]
[1770109880233,2.52005876,2299.0,2297.2,0.00487115]
[1770109880630,2.52005876,2298.8,2297.6,5.72347401]
[1770109880934,2.52005876,2298.8,2297.2,0.00487115]
[1770109880935,2.52005876,2298.6,2297.2,2.46530349]
[1770109881129,2.52530522,2298.6,2297.7,40.8]
[1770109881435,2.52005876,2298.4,2297.2,1.22038458]
[1770109881631,4.58832296,2298.5,2297.3,2.46043234]
[1770109881835,0.00524646,2298.6,2297.7,4.3512]
[1770109882033,2.52005876,2298.4,2297.4,1.22038458]
[1770109882236,2.52005876,2298.4,2297.5,40.8]
[1770109882437,4.88729878,2298.3,2297.5,40.80483428]
[1770109882735,4.88729878,2298.3,2297.6,4.3512]
[1770109883132,4.88729878,2298.3,2297.7,5.57158458]
[1770109883635,2.52005876,2298.4,2297.5,40.80483428]
[1770109883834,2.52005876,2298.4,2297.5,42.02521886]
[1770109884132,4.69431613,2298.3,2297.5,42.02521886]
[1770109884335,4.69431613,2298.3,2297.6,4.3512]
[1770109884534,7.21437489,2298.3,2297.5,42.02521886]
[1770109884733,2.52005876,2298.2,2297.5,0.00483428]
[1770109884938,2.52005876,2298.2,2296.4,2.46043234]
[1770109885138,4.63635482,2298.1,2296.5,2.46043234]
[1770109885330,4.63635482,2298.1,2297.0,2.46043234]
[1770109885633,2.52005876,2298.3,2297.0,6.81163234]
[1770109885937,2.52005876,2298.3,2297.4,4.3512]
[1770109886337,4.60777164,2298.2,2297.5,1.22038458]
[1770109886537,4.60777164,2298.2,2297.5,0.65596744]
[1770109886838,0.00524646,2298.6,2297.7,2.55902439]
[1770109887034,0.00524646,2298.6,2297.2,0.65596744]
[1770109887235,4.52871501,2298.5,2297.3,2.55902439]
[1770109887537,4.52871501,2298.5,2297.5,2.55902439]
[1770109887839,4.52871501,2298.5,2297.6,3.21499183]
[1770109888138,4.52871501,2298.5,2297.6,2.55902439]
[1770109888337,0.00524646,2298.6,2297.6,3.21499183]
[1770109888540,4.96620308,2298.4,2297.7,2.55902439]
[1770109888832,3.47848025,2300.0,2297.7,2.77678439]
[1770109889032,3.69596025,2300.8,2298.4,2.55902439]
[1770109889229,3.96273611,2299.4,2298.5,2.55902439]
[1770109889434,2.549,2300.6,2299.1,2.55902439]
[1770109889633,0.04515517,2300.5,2299.1,2.55902439]
[1770109890029,7.19087651,2300.6,2299.1,2.55902439]
[1770109890030,4.93614329,2300.4,2299.1,2.55902439]
[1770109890237,4.93614329,2300.4,2299.1,2.56395743]
[1770109890438,4.98149978,2300.5,2299.2,2.5364468]
[1770109890635,0.04887344,2300.5,2299.1,0.00493304]
[1770109890837,0.04515517,2300.3,2299.1,0.00493304]
[1770109891132,4.89398758,2300.2,2299.1,2.54137984]
[1770109891433,4.89398758,2300.3,2299.1,2.54137984]
[1770109891638,4.89398758,2300.3,2299.2,2.5364468]
[1770109891838,0.32615571,2300.4,2299.2,3.19241424]
[1770109892038,4.89398758,2300.2,2299.4,2.46043234]
[1770109892240,4.89398758,2300.3,2299.4,2.46043234]
[1770109892537,4.53297258,2300.4,2299.5,2.46043234]
[1770109892733,0.00371827,2300.5,2299.8,2.46043234]
[1770109892934,0.21736,2302.1,2300.4,0.65596744]
[1770109893139,0.32987398,2301.9,2300.2,2.46043234]
[1770109893339,4.98042481,2301.6,2300.4,2.46043234]
[1770109893537,0.32987398,2301.9,2300.4,2.46043234]
[1770109893939,4.98042481,2301.5,2300.5,2.46043234]
[1770109894137,4.98042481,2301.8,2300.6,2.46043234]
[1770109894343,0.00488968,2301.9,2301.0,2.46043234]
[1770109894543,0.00488968,2301.9,2301.0,2.46435469]
[1770109894739,5.00083779,2301.8,2301.4,2.46043234]
[1770109894937,0.00488968,2301.9,2301.4,2.46043234]
[1770109895137,3.044,2302.9,2301.8,3.11639978]
[1770109895338,3.43357368,2302.9,2301.8,2.46043234]
[1770109895539,4.80581194,2302.4,2302.0,2.46043234]
[1770109895739,4.80581194,2302.8,2302.0,2.46043234]
[1770109895937,3.26122,2303.5,2302.0,2.46043234]
[1770109895938,5.18277751,2303.2,2302.0,2.46043234]
[1770109896138,0.37696557,2303.1,2301.5,2.46043234]
[1770109896338,5.33079045,2303.1,2301.5,2.46043234]
[1770109897339,5.33079045,2303.1,2301.6,8.21272874]
[1770109897642,5.33079045,2303.1,2301.7,2.46043234]
[1770109898346,6.52055104,2303.0,2301.9,2.46043234]
[1770109898647,11.55146085,2302.9,2301.5,2.46043234]
[1770109898941,6.94496379,2302.8,2301.5,2.46043234]
[1770109899141,6.52055104,2302.7,2301.5,2.46043234]
[1770109899449,6.52055104,2302.6,2301.5,2.46043234]
[1770109899843,4.79451903,2302.5,2301.5,2.46043234]
[1770109900043,6.52055104,2302.4,2301.6,2.46043234]
[1770109900341,11.35625456,2302.3,2301.6,3.11639978]
[1770109900546,4.81894736,2301.9,2301.0,0.00392235]
[1770109900745,5.92669652,2302.1,2301.0,0.00392235]
[1770109900746,11.3394984,2301.8,2301.0,0.00392235]
[1770109901045,6.52055104,2301.7,2301.0,0.00392235]
[1770109901241,9.65465088,2301.8,2301.0,0.00392235]
[1770109901242,6.52055104,2301.6,2301.0,0.00392235]
[1770109901446,11.3394984,2301.5,2301.0,2.56294674]
[1770109901746,11.18182723,2301.4,2301.0,2.56294674]
[1770109901946,6.52055104,2301.3,2301.0,2.56294674]
[1770109902144,6.52055104,2301.2,2301.0,2.56294674]
[1770109902447,3.91213743,2301.1,2301.0,2.56294674]
[1770109902946,5.93190573,2301.5,2301.0,0.00392235]
[1770109902947,0.00520921,2301.5,2301.0,0.00392235]
[1770109903242,5.92669652,2302.0,2301.0,2.46435469]
[1770109903441,5.92669652,2302.0,2301.2,2.46043234]
[1770109903442,5.92669652,2301.9,2301.2,2.46043234]
[1770109903744,14.65778131,2302.0,2301.2,2.46043234]
[1770109904044,2.55902439,2302.3,2301.3,5.78767043]
[1770109904246,5.92669652,2302.1,2301.3,5.78767043]
[1770109904443,2.55902439,2302.0,2301.1,5.57025043]
[1770109904741,5.92669652,2301.8,2301.0,0.00392235]
[1770109905046,2.55902439,2301.9,2301.0,0.00392235]
[1770109905245,7.48291798,2301.7,2300.7,0.21748]
[1770109905441,7.48291798,2301.7,2294.9,14.91161703]
[1770109905442,3.47848025,2300.8,2294.9,14.91161703]
[1770109905638,3.47848025,2300.8,2293.8,2.46043234]
[1770109905639,2.52005876,2295.8,2292.8,2.46043234]
[1770109905839,6.21382563,2294.7,2292.8,40.8]
[1770109906040,2.52005876,2294.5,2292.3,2.46043234]
[1770109906345,2.52005876,2293.6,2292.3,0.00503405]
[1770109906544,2.52005876,2293.4,2291.7,2.46043234]
[1770109906741,4.69964022,2293.5,2291.8,3.47848025]
[1770109906945,2.52005876,2293.6,2291.9,2.46043234]
[1770109907248,2.52005876,2293.3,2291.9,2.46043234]
[1770109907546,2.52005876,2293.5,2291.9,2.46443897]
[1770109907747,4.76450895,2293.2,2291.9,2.46443897]
[1770109908048,2.52005876,2293.2,2291.9,2.46443897]
[1770109908348,2.52005876,2293.0,2291.9,0.00400663]
[1770109908539,2.52335739,2294.5,2292.3,2.46043234]
[1770109908738,7.73957589,2294.4,2292.7,2.46043234]
[1770109909046,2.52005876,2295.4,2293.6,2.46043234]
[1770109909447,12.52274141,2295.3,2293.8,2.46043234]
[1770109909746,2.52005876,2295.2,2293.8,2.46043234]
[1770109909951,2.52005876,2295.2,2293.4,8.02718017]
[1770109910245,2.52005876,2295.0,2293.4,2.51163378]
[1770109910644,4.53978352,2294.9,2293.4,2.51163378]
[1770109910844,2.47532967,2294.8,2293.4,2.51163378]
[1770109911040,4.53978352,2294.9,2293.4,2.51163378]
[1770109911242,7.73957589,2294.9,2293.6,2.50734581]
[1770109911642,2.41931498,2294.8,2293.4,2.35180525]
[1770109911845,7.73957589,2294.7,2293.4,2.35180525]
[1770109912048,7.73957589,2294.8,2293.4,2.35180525]
[1770109912445,2.41931498,2294.6,2291.9,2.34751728]
[1770109912852,12.6148229,2294.5,2292.8,2.34751728]
[1770109913043,7.73957589,2294.9,2292.9,2.34751728]
[1770109913243,4.87524701,2294.7,2293.0,2.34751728]
[1770109913443,2.41931498,2294.7,2293.0,2.05e-06]
[1770109913748,0.00477399,2295.2,2291.8,2.34751728]
[1770109913749,2.41931498,2294.2,2291.8,2.34751728]
[1770109914047,2.41931498,2294.5,2293.1,40.8]
[1770109914453,7.45340996,2294.5,2293.1,43.14751728]
[1770109914651,2.41931498,2294.3,2293.1,43.15072675]
[1770109915052,7.73957589,2294.2,2293.1,43.15072675]
[1770109915747,4.58371788,2294.1,2293.1,43.15072675]
[1770109915956,7.73957589,2294.2,2293.2,2.34751728]
[1770109916349,2.41931498,2295.0,2293.3,5.65986976]
[1770109916652,2.41931498,2294.8,2293.4,2.34751728]
[1770109917050,12.4610091,2294.7,2293.4,2.34751728]
[1770109917755,2.41931498,2294.6,2293.4,2.34751728]
[1770109918151,12.61678481,2294.5,2293.4,2.34751728]
[1770109918348,2.41931498,2294.4,2293.1,40.80320947]
[1770109918549,7.46757948,2294.4,2293.2,2.34751728]
[1770109919456,7.73957589,2294.3,2293.2,2.34751728]
[1770109919949,4.69921571,2294.2,2293.2,2.34751728]
[1770109920163,7.73957589,2294.3,2293.2,2.34751728]
[1770109920553,2.42408897,2295.2,2293.4,0.21817]
[1770109920752,0.00477399,2295.2,2293.5,0.21816]
[1770109920949,0.00477399,2295.2,2293.5,10.46282701]
[1770109921148,2.5613598,2296.1,2294.7,40.8]
[1770109921356,2.74185372,2296.0,2294.7,44.559]
[1770109921556,2.74185372,2296.0,2294.8,5.75031238]
[1770109921958,5.30321352,2296.0,2294.8,5.75031238]
[1770109922157,4.76856346,2295.9,2294.8,5.75586338]
[1770109922358,5.30834755,2296.0,2294.8,5.75586338]
[1770109922851,3.05,2296.8,2294.8,5.75586338]
[1770109923051,2.5613598,2296.6,2294.9,7.04203]
[1770109923254,2.5613598,2296.5,2294.9,6.824]
[1770109923458,2.56649383,2296.4,2295.0,5.58493094]
[1770109923653,7.1794458,2296.4,2295.0,5.58493094]
[1770109923852,2.5613598,2296.3,2295.0,5.58493094]
[1770109924052,5.30828658,2296.3,2295.0,5.58493094]
[1770109924256,0.00418928,2296.3,2295.0,5.58493094]
[1770109924855,2.5613598,2297.0,2295.1,0.21801]
[1770109925052,2.5613598,2297.0,2295.3,0.21799]
[1770109925254,2.5613598,2297.4,2295.3,0.21799]
[1770109925456,5.30321352,2297.4,2295.4,5.59463231]
[1770109925657,5.30321352,2297.4,2295.5,3.796]
[1770109925859,5.30873089,2297.4,2295.5,3.796]
[1770109926060,5.30873089,2297.4,2295.6,5.6762445]
[1770109926256,7.11885192,2299.9,2295.6,5.6762445]
[1770109926257,2.5613598,2297.9,2296.1,0.21792]
[1770109926556,2.5613598,2297.7,2296.2,40.8]
[1770109927055,2.74185372,2297.6,2296.2,40.8]
[1770109927255,2.74527874,2297.6,2296.3,5.65692256]
[1770109927452,2.74527874,2297.6,2296.4,3.05]
[1770109927653,0.00342502,2297.6,2296.5,3.803]
[1770109927853,0.00342502,2297.6,2296.5,9.54780437]
[1770109928555,2.5613598,2297.4,2296.5,5.74480437]
[1770109929065,2.74185372,2297.3,2296.5,5.74480437]
[1770109929362,2.74185372,2297.5,2296.5,5.74480437]
[1770109930563,2.5613598,2297.4,2296.6,3.809]
[1770109930763,0.00342502,2297.6,2296.6,3.809]
[1770109930959,0.00342502,2297.6,2296.7,5.55929359]
[1770109932062,0.00342502,2297.6,2296.8,40.8]
[1770109932464,0.00342502,2297.6,2296.9,5.75560897]
[1770109932864,0.00342502,2297.6,2297.0,6.863]
[1770109933063,0.00342502,2297.6,2296.9,5.75560897]
[1770109933264,0.00342502,2297.6,2297.1,5.74682019]
[1770109933464,2.5613598,2298.5,2297.0,6.872]
[1770109933665,2.74185372,2298.4,2297.0,6.872]
[1770109933865,2.74185372,2298.4,2297.1,5.74682019]
[1770109934568,2.74741211,2298.4,2297.1,5.74682019]
[1770109934971,2.5613598,2298.3,2297.1,5.74682019]
[1770109935167,2.57410813,2297.9,2297.2,3.838]
[1770109935469,2.74185372,2298.2,2297.3,5.56027755]
[1770109936770,2.74185372,2298.2,2297.3,5.77807755]
[1770109937171,2.5613598,2299.5,2298.0,0.21773]
[1770109937469,2.5613598,2299.5,2298.1,11.56404391]
[1770109937777,2.30074372,2299.4,2298.2,43.354]
[1770109938068,2.57411652,2299.8,2298.2,48.9082859]
[1770109938276,2.57411652,2299.5,2298.2,48.91161296]
[1770109938773,0.01275672,2299.4,2298.2,48.91161296]
[1770109939071,2.5613598,2299.5,2298.2,48.91161296]
[1770109939072,2.30074372,2299.3,2298.2,48.91161296]
[1770109939868,2.48147201,2300.7,2298.2,48.91161296]
[1770109940069,2.5613598,2300.5,2299.0,0.21764]
[1770109940472,2.55748011,2299.9,2299.1,5.74347564]
[1770109940665,2.55748011,2299.7,2298.3,0.2177]
[1770109940972,2.48147201,2300.8,2298.5,3.49995644]
[1770109941166,2.55748011,2300.6,2299.3,0.21761]
[1770109941366,2.55748011,2300.4,2299.4,3.864]
[1770109941673,2.55748011,2300.4,2299.4,9.46814224]
[1770109942073,2.56138535,2300.4,2299.4,9.46814224]
[1770109942369,2.56138535,2300.4,2299.5,3.87]
[1770109942671,2.56138535,2300.4,2299.6,9.57622177]
[1770109943170,2.56138535,2300.4,2299.7,40.8]
[1770109943373,2.56138535,2300.4,2299.7,46.39849883]
[1770109944069,2.56138535,2300.4,2293.7,863.2132]
[1770109944070,2.53622177,2299.2,2293.6,14.80410753]
[1770109944270,2.53622177,2297.2,2294.3,10.36095661]
[1770109944469,2.46916471,2295.6,2292.0,2.43766308]
[1770109944668,2.46916471,2295.6,2292.9,2.43766308]
[1770109944669,2.53622177,2295.4,2292.9,2.43766308]
[1770109944870,2.53622177,2295.1,2292.9,2.43766308]
[1770109945172,2.53622177,2294.9,2293.0,5.68372034]
[1770109945377,2.53622177,2294.7,2292.9,0.00436724]
[1770109945674,2.53622177,2294.5,2293.0,5.68372034]
[1770109945872,2.53622177,2294.3,2292.9,0.00436724]
[1770109946380,2.53622177,2294.1,2292.1,2.43766308]
[1770109946675,2.53622177,2294.1,2292.5,2.43766308]
[1770109946873,2.53622177,2294.1,2292.6,2.43766308]
[1770109947077,2.53622177,2294.1,2293.1,31.56250544]
[1770109947278,4.57553552,2294.0,2293.1,0.0042327]
[1770109947574,2.53622177,2294.1,2293.1,0.0042327]
[1770109948077,2.53622177,2294.1,2293.1,31.56673814]
[1770109948275,2.53622177,2294.1,2293.1,0.0042327]
[1770109949573,4.6438827,2294.0,2293.1,0.0042327]
[1770109949774,2.53622177,2294.1,2293.1,0.0042327]
[1770109950178,2.53622177,2294.1,2293.1,31.56673814]
[1770109953388,2.53622177,2294.8,2293.5,31.56250544]
[1770109953584,2.53622177,2294.8,2293.4,3.922]
[1770109953780,4.67623051,2294.8,2293.7,2.43766308]
[1770109953982,0.00458447,2295.1,2294.2,31.56250544]
[1770109954190,2.54080624,2295.1,2293.8,5.74513293]
[1770109954389,4.67623051,2295.0,2293.8,31.56250544]
[1770109954685,2.53622177,2294.9,2293.8,31.54942706]
[1770109954884,2.53622177,2294.9,2293.7,3.05]
[1770109954885,2.53622177,2294.9,2294.0,31.54942706]
[1770109955086,2.53622177,2294.9,2293.9,5.58750907]
[1770109955290,0.00458447,2295.1,2293.7,3.05]
[1770109955291,8.51446171,2294.8,2293.7,3.05]
[1770109955492,2.53622177,2294.8,2293.7,3.05]
[1770109955692,2.53622177,2294.6,2293.7,3.05]
[1770109956295,2.53622177,2295.0,2293.7,34.59942706]
[1770109956494,2.53622177,2295.0,2293.8,39.6424768]
[1770109956686,2.53622177,2295.0,2293.9,31.54942706]
[1770109957190,0.07590886,2294.8,2289.6,2.55748011]
[1770109957396,2.4531621,2291.6,2289.8,2.55748011]
[1770109957691,2.47051173,2291.3,2289.8,2.55748011]
[1770109957890,9.01390457,2291.2,2289.8,2.55748011]
[1770109958087,4.67662726,2291.2,2289.8,2.55748011]
[1770109958293,4.67662726,2291.2,2289.8,2.5609185]
[1770109958294,0.005066,2291.2,2289.8,2.5609185]
[1770109958487,0.005066,2291.2,2290.0,2.5488053]
[1770109958689,0.01734963,2292.5,2290.0,2.5488053]
[1770109958894,0.01734963,2292.5,2289.9,4.86618186]
[1770109958895,6.00913439,2292.4,2290.2,2.5462723]
[1770109959097,4.68631106,2292.3,2290.2,2.5462723]
[1770109959296,0.02241563,2292.2,2290.4,2.5462723]
[1770109959492,0.02241563,2293.4,2290.6,2.5462723]
[1770109959696,6.00085263,2293.3,2290.8,2.55748011]
[1770109959896,4.60474058,2293.0,2290.8,2.55748011]
[1770109960092,0.2182,2293.2,2292.1,4.333]
[1770109960297,4.60474058,2292.9,2291.0,2.55748011]
[1770109960598,4.99239579,2293.0,2291.0,2.55748011]
[1770109961100,3.051,2293.1,2291.2,2.55748011]
[1770109961394,3.051,2293.1,2291.2,2.56271359]
[1770109961596,10.792794,2293.0,2291.2,0.00523348]
[1770109961894,9.04081881,2292.9,2291.2,0.00523348]
[1770109962098,5.98881881,2292.8,2291.2,0.00523348]
[1770109962300,4.80397519,2292.8,2291.2,0.00523348]
[1770109962599,3.052,2292.7,2291.2,0.00523348]
[1770109963100,4.66807344,2292.6,2291.2,0.00523348]
[1770109963490,4.66807344,2292.6,2291.2,2.56271359]
[1770109963991,0.00543785,2293.4,2291.9,2.56169047]
[1770109964197,0.00543785,2293.4,2291.9,2.55748011]
[1770109964394,4.64564509,2293.3,2291.3,2.55748011]
[1770109964801,7.69864509,2293.3,2291.5,2.55748011]
[1770109965200,4.64564509,2293.3,2291.5,2.55748011]
[1770109965398,0.21824,2292.8,2291.2,0.00523348]
[1770109965600,4.64564509,2293.3,2291.2,2.56271359]
[1770109965800,4.64564509,2293.3,2291.4,2.55748011]
[1770109966202,4.64564509,2293.3,2291.4,2.56169047]
[1770109967397,4.64564509,2293.3,2292.3,2.55748011]
[1770109967599,0.00543785,2293.4,2292.1,2.55409569]
[1770109968001,4.79667503,2293.3,2292.3,2.55409569]
[1770109968303,0.00543785,2293.4,2292.3,2.55409569]
[1770109968506,0.00543785,2293.4,2292.4,2.55830605]
[1770109968803,0.00543785,2293.4,2291.2,3.48e-06]
[1770109968804,0.00676885,2293.3,2291.2,3.48e-06]
[1770109969000,0.00255849,2291.6,2289.9,2.55620087]
[1770109969304,5.00906707,2291.5,2289.9,2.55620087]
[1770109969505,5.00906707,2291.5,2290.1,2.55620087]
[1770109969804,4.86501269,2291.6,2290.1,2.55620087]
[1770109969996,4.86501269,2291.4,2290.1,2.56041774]
[1770109970403,0.00357772,2291.6,2290.1,2.56041774]
[1770109971405,4.60042326,2291.5,2290.3,2.56277025]
[1770109971607,0.00357772,2291.6,2290.3,2.56277025]
[1770109972106,4.84035727,2291.5,2290.3,2.56277025]
[1770109972502,0.00357772,2291.6,2290.3,2.56277025]
[1770109973205,6.08747502,2291.5,2290.3,2.56277025]
[1770109973408,6.08747502,2291.4,2290.3,2.56277025]
[1770109973608,6.08747502,2291.3,2290.3,2.56277025]
[1770109973907,6.08747502,2291.2,2290.3,2.56277025]
[1770109974107,2.4531621,2291.0,2290.3,2.56277025]
[1770109974403,6.12471099,2290.9,2290.3,2.56277025]
[1770109974604,6.12471099,2290.8,2290.3,2.56277025]
[1770109974798,2.4531621,2291.1,2290.3,2.56277025]
[1770109975002,6.05026155,2291.0,2290.3,2.56277025]
[1770109975303,2.4531621,2291.3,2290.3,2.56277025]
[1770109975505,6.05078137,2291.2,2290.3,2.56277025]
[1770109975801,6.05078137,2291.1,2290.3,2.56277025]
[1770109976005,5.5774621,2291.4,2290.3,2.56277025]
[1770109976202,5.93095929,2291.3,2290.3,2.56277025]
[1770109976406,5.93095929,2291.2,2290.3,2.56277025]
[1770109976606,5.93095929,2291.1,2290.3,2.56277025]
[1770109976807,5.5774621,2291.4,2290.3,2.56277025]
[1770109977001,5.86922093,2291.3,2290.3,2.56277025]
[1770109977205,5.86922093,2291.2,2290.5,2.56010437]
[1770109977511,5.86922093,2291.1,2290.5,2.56010437]
[1770109977706,5.5774621,2291.4,2290.5,2.56010437]
[1770109977907,5.86886096,2291.3,2290.5,2.56010437]
[1770109978207,5.86886096,2291.2,2290.5,2.56010437]
[1770109978406,5.86886096,2291.1,2290.5,2.56010437]
[1770109978605,5.5774621,2291.4,2290.5,2.56010437]
[1770109978806,5.8456123,2291.3,2290.5,2.56010437]
[1770109979108,8.2987744,2291.2,2290.5,2.56010437]
[1770109979303,5.8456123,2291.1,2290.5,2.56010437]
[1770109979508,5.8456123,2291.0,2290.5,2.56010437]
[1770109979708,5.8456123,2290.9,2290.5,2.56010437]
[1770109979909,2.4531621,2291.2,2290.5,2.56010437]
[1770109980111,5.83253337,2291.1,2290.5,2.56010437]
[1770109980310,5.83253337,2291.0,2290.5,2.56010437]
[1770109980508,2.4531621,2291.2,2290.5,2.56010437]
[1770109980703,5.8345864,2291.1,2290.5,2.56010437]
[1770109980909,4.94175437,2291.6,2290.5,2.56010437]
[1770109980910,0.00357772,2291.6,2290.5,2.56010437]
[1770109981207,37.03747069,2291.4,2290.1,2.43048299]
[1770109981508,37.03747069,2291.4,2290.3,2.42626612]
[1770109981711,2.32085735,2291.4,2290.2,3.055]
[1770109982010,4.3648,2291.1,2290.2,3.055]
[1770109982511,37.03747069,2290.8,2289.5,2.42626612]
[1770109982911,4.3648,2290.7,2289.5,2.42626612]
[1770109983206,37.03747069,2290.7,2289.5,2.42626612]
[1770109983403,2.5699,2290.7,2289.7,2.56310589]
[1770109983602,2.5699,2290.7,2289.7,2.56798]
[1770109983800,2.5699,2290.7,2289.9,2.56375591]
[1770109984705,37.03747069,2291.2,2290.1,2.42626612]
[1770109984905,37.03747069,2291.5,2290.1,2.42626612]
[1770109985105,37.03747069,2291.5,2290.3,2.42626612]
[1770109985307,37.03747069,2291.3,2290.5,2.42626612]
[1770109985611,37.03747069,2291.4,2290.5,2.42626612]
[1770109985813,4.3648,2291.4,2290.5,2.42626612]
[1770109986409,41.40227069,2291.4,2290.5,2.42626612]
[1770109986712,37.03747069,2291.5,2290.5,2.42626612]
[1770109987206,4.94175437,2291.6,2290.5,2.42626612]
[1770109987207,37.03747069,2291.3,2290.5,2.42626612]
[1770109987408,37.03747069,2291.2,2290.5,2.42626612]
[1770109987612,37.03747069,2291.1,2290.4,5.48126612]
[1770109987806,9.0139495,2291.2,2290.5,2.42626612]
[1770109988012,4.3648,2291.2,2290.5,2.42626612]
[1770109988214,37.03747069,2291.3,2290.5,2.42626612]
[1770109988517,41.40227069,2291.1,2290.0,2.42626612]